Cogmind - Beta 13 @@@ ROGUE MODE // 2024.04.30 @ 16:08:55 // Winter2019/RPGLIKE Player: Red_Zig Result: Destroyed by H-61 Shepherd with Heavy Assault Cannon Performance ------------- Evolutions (2) 1000 Regions Visited (3) 600 Robots Destroyed (82) 410 Value Destroyed (2125) 2125 Prototype IDs (10) 200 Alien Tech Used (0) 0 Bonus (55) 55 TOTAL SCORE: 4390 Bonus ------- High Alert Combat Kills 55 Cogmind --------- Core Integrity 0/650 Matter 255/300 Energy 250/250 System Corruption 0% Temperature Cool (0) Movement Rolling (155) Ox5 Location -8/Materials Parts ------- > --- POWER (1) -------- Ion Engine > --- PROPULSION (4) --- Wheel Wheel Wheel Wheel > --- UTILITY (5) ------ Humpback Signal Interpreter Gun Armor > --- WEAPON (2+2) ----- High-powered Shotgun Barrage Gun (+) Improved Grenade Launcher (+) Flamer > --- INVENTORY (32) --- Faulty Heavy Ion Engine Heavy Ion Engine Subdweller Power Source Subdweller Power Source Subdweller Power Source Light Treads Light Treads Wheel Wheel Disposable Heat Sink Medium Matter Pod (100) Large Matter Pod (150) Large Matter Pod (30) Seismic Detector Targeting Computer Utility Shielding Makeshift Light Armor Plating Tractor Beam Subdweller Laser Light EM Pulse Cannon Light EM Pulse Cannon Assault Rifle Assault Rifle Battle Rifle Subdweller Machine Gun Subdweller Machine Gun Enhanced Autogun Battle Cannon Grenade Launcher Flamer Peak State ------------ > --- POWER ------------ Ion Engine > --- PROPULSION ------- Wheel Wheel Wheel Wheel > --- UTILITY ---------- Humpback Machine Analyzer Signal Interpreter Gun Armor > --- WEAPON ----------- High-powered Shotgun Barrage Gun Improved Grenade Launcher Flamer > --- INVENTORY -------- Heavy Ion Engine Heavy Ion Engine Subdweller Power Source Subdweller Power Source Subdweller Power Source Light Treads Light Treads Wheel Subdweller Monowheel Subdweller Monowheel Subdweller Monowheel Subdweller Monowheel Disposable Heat Sink Medium Matter Pod Large Matter Pod Seismic Detector Targeting Computer Utility Shielding Makeshift Light Armor Plating Tractor Beam Subdweller Laser Light EM Pulse Cannon Light EM Pulse Cannon Assault Rifle Assault Rifle Battle Rifle Subdweller Machine Gun Subdweller Machine Gun Enhanced Autogun Battle Cannon Grenade Launcher Flamer [Rating: 36] Favorites ----------- Power Ion Engine Engine Ion Engine Propulsion Light Treads Treads Light Treads Wheel Subdweller Monowheel Utility Signal Interpreter Device Tractor Beam Storage Humpback Processor Signal Interpreter Protection Makeshift Light Armor Plating Weapon Assault Rifle Ballistic Gun Assault Rifle Launcher Improved Grenade Launcher Special Weapon Flamer Build | -11 -10 -10 -8 ------- Run | Yrd Mat Sub Mat Slots Evolved 8 | . 4 1 3 Power . | . . . . Propulsion 3 | . 1 . 2 Utility 4 | . 2 1 1 Weapon 1 | . 1 . . Parts Attached 48 | 5 7 16 20 Power 1 | 1 . . . Engine 1 | 1 . . . Core . | . . . . Reactor . | . . . . Propulsion 19 | 1 3 7 8 Treads 6 | 1 3 . 2 Leg . | . . . . Wheel 13 | . . 7 6 Hover . | . . . . Flight . | . . . . Utility 9 | 2 2 3 2 Device 4 | 2 1 1 . Storage 1 | . . 1 . Processor 2 | . 1 . 1 Hackware . | . . . . Protection 2 | . . 1 1 Artifact . | . . . . Weapon 19 | 1 2 6 10 Energy Gun . | . . . . Energy Cannon . | . . . . Ballistic Gun 10 | 1 2 5 2 Ballistic Cannon . | . . . . Launcher 3 | . . 1 2 Special Weapon 6 | . . . 6 Impact Weapon . | . . . . Slashing Weapon . | . . . . Piercing Weapon . | . . . . Special Melee Weapon . | . . . . Unidentified Prototypes . | . . . . Parts Lost . | . . . . Power . | . . . . Propulsion . | . . . . Utility . | . . . . Weapon . | . . . . Highest Loss Streak . | . . . . To Critical Strikes . | . . . . Average Slot Usage (%) 89 | . 99 87 89 Engine 11 | . 14 11 8 Treads 16 | . 25 17 5 Wheel 7 | . . 6 14 Device 4 | . 22 1 3 Storage 9 | . . 11 8 Processor 12 | . 10 11 16 Protection 2 | . . 2 4 Ballistic Gun 21 | . 25 24 11 Special Weapon 2 | . . . 10 Naked Turns . | . . . . Heaviest Build 223 | 7 11 217 223 Greatest Support 40 | 20 40 40 40 Greatest Overweight (x) 11 | . . 10 11 Average Overweight (x) 5 | . . 6 7 Largest Inventory Capacity 32 | . 2 32 32 Average Capacity 26 | . . 31 32 Most Carried 32 | . 2 25 32 Average Carried 13 | . . 11 29 Final Capacity 32 | . 2 32 32 Final Carried 30 | . 2 25 30 Class Distribution -------------------- 70% | Hauler-Mutant 17% | Mutant 12% | Hauler-Gunner Dominant Class ---------------- Mutant | -10/Materials Hauler-Mutant | -10/Subcaves Hauler-Gunner | -8/Materials Resources | -11 -10 -10 -8 ----------- Run | Yrd Mat Sub Mat Matter Collected 2608 | 255 778 625 950 Remotely 866 | . 588 76 202 Salvage Created 2326 | 85 888 636 717 Parts 174 | 6 53 48 67 Haulers Intercepted 4 | . 2 . 2 Recyclers Shooed 2 | . 1 . 1 Parts Field Recycled . | . . . . Retrieved Matter . | . . . . Parts Self-Destructed 11 | . . 11 . Prevented . | . . . . Kills | -11 -10 -10 -8 ------- Run | Yrd Mat Sub Mat Combat Hostiles Destroyed 51 | . 17 14 20 Guns 40 | . 17 13 10 Cannons 4 | . . . 4 AOE 6 | . . 1 5 Classes Destroyed 14 | 2 8 2 2 Worker 7 | . 1 . 6 Builder 7 | . 3 . 4 Tunneler 6 | 1 1 . 4 Hauler 4 | . 2 . 2 Recycler 5 | 1 3 . 1 Operator 1 | . 1 . . Watcher 1 | . 1 . . Swarmer 10 | . 6 1 3 Grunt 20 | . 9 . 11 Duelist 2 | . . . 2 Sentry 4 | . . 1 3 Hunter 1 | . . . 1 Cobbler 1 | . . 1 . Subdweller 14 | . 2 12 . Best Kill Streak 4 | 2 4 2 4 Combat Bots Only 4 | . 4 2 3 Max Kills in Single Turn 2 | 1 2 1 2 Gunslinging 1 | . 1 . . Exploded 2 | . . 1 2 Melee . | . . . . Uniques/NPCs Destroyed . | . . . . Combat | -11 -10 -10 -8 -------- Run | Yrd Mat Sub Mat Hostile Shots Fired 216 | . 87 40 89 Missed 56 | . 22 12 22 Damage Taken 2435 | . 873 552 1010 Core 1931 | . 702 430 799 Absorbed by Shields . | . . . . Redirected to Core 1665 | . 568 358 739 Ignored by Resistances 50 | . . 12 38 Core Remaining (%) 73 | 100 . 47 . Volleys Fired 306 | 15 112 92 87 Largest 3 | 1 2 2 3 Hottest 200 | 20 40 60 200 Shots Fired 555 | 15 198 161 181 Gun 477 | 15 198 160 104 Cannon . | . . . . Launcher 24 | . . 1 23 Special 54 | . . . 54 Kinetic 477 | 15 198 160 104 Thermal 54 | . . . 54 Explosive 24 | . . 1 23 Electromagnetic . | . . . . Robot Hit Streak 23 | 11 14 17 23 Robot Miss Streak 6 | 1 6 3 4 Penetration Max . | . . . . Secondary Targets 4 | . 3 1 . Max Gunslinging Chain 1 | . 1 1 . Shots Hit Robots 290 | 14 120 49 107 Core Hits 145 | 5 49 28 63 Critical Kills . | . . . . Critical Parts Destroyed 1 | . . . 1 Critical Strikes 5 | . . . 5 Burn 4 | . . . 4 Destroy 1 | . . . 1 Melee Attacks . | . . . . Impact . | . . . . Slashing . | . . . . Piercing . | . . . . Sneak Attacks . | . . . . Combat Hostiles . | . . . . Follow-up Attacks . | . . . . Damage Inflicted 4932 | 107 1453 928 2444 Guns 3846 | 107 1453 890 1396 Cannons . | . . . . Explosions 686 | . . 38 648 Melee . | . . . . Ramming 33 | . . . 33 Kinetic 3846 | 107 1453 890 1396 Thermal 367 | . . . 367 Explosive 686 | . . 38 648 Electromagnetic . | . . . . Impact . | . . . . Slashing . | . . . . Piercing . | . . . . Highest Corruption . | . . . . Average Corruption . | . . . . Corruption Purged . | . . . . Corruption Blocked . | . . . . Overload Shots . | . . . . Overflow Damage . | . . . . Projectiles . | . . . . Explosions . | . . . . Melee . | . . . . Knockbacks . | . . . . Impact . | . . . . Kinetic . | . . . . Secondary . | . . . . Self-Inflicted Damage 16 | . . . 16 Shots . | . . . . Rammed 1 | . . . 1 Targets Rammed 1 | . . . 1 Kicked . | . . . . Crushed . | . . . . Highest Temperature 245 | . 6 . 245 Average Temperature 62 | . 2 . 66 Received Heat Transfer 747 | . 366 39 342 Siege Activations . | . . . . Robots Corrupted . | . . . . Combat Hostiles . | . . . . Parts Fried . | . . . . Impact Corruptions . | . . . . Robots Melted 1 | . . . 1 Combat Hostiles 1 | . . . 1 Parts Melted 10 | . 1 . 9 Heat Transferred 3280 | . . . 3280 Parts Sabotaged . | . . . . Parts Stolen . | . . . . Parts Stripped . | . . . . Power Chain Reactions . | . . . . Alert | -11 -10 -10 -8 ------- Run | Yrd Mat Sub Mat Peak Influence 679 | 10 288 . 679 Initial 17 | . 6 . 17 Average 146 | 3 124 . 168 Maximum Alert Level 2 | . 1 . 2 Low Security (%) 75 | 100 83 . 68 Level 1 15 | . 16 . 15 Level 2 9 | . . . 15 Level 3 . | . . . . Level 4 . | . . . . Level 5 . | . . . . High Security . | . . . . Max Security . | . . . . Squads Dispatched 4 | . 1 . 3 Investigation 1 | . . . 1 Extermination . | . . . . Reinforcement 3 | . 1 . 2 Assault . | . . . . Garrison . | . . . . Intercept . | . . . . Searches Triggered . | . . . . Construction Impeded 1 | . . . 1 Haulers Reinforced . | . . . . Active Scanning Responses . | . . . . Cargo Convoy Interrupts . | . . . . Stealth | -11 -10 -10 -8 --------- Run | Yrd Mat Sub Mat Distress Signals 2 | . 1 . 1 Communications Jammed . | . . . . Distress Signals . | . . . . Times Spotted 66 | . 24 13 29 Peak Tracking Total 4 | . 4 2 3 Tactical Retreats 6 | . 2 . 4 Traps | -11 -10 -10 -8 ------- Run | Yrd Mat Sub Mat Traps Triggered 2 | . 1 . 1 Indirectly . | . . . . Trap Hack Attempts . | . . . . Triggered . | . . . . Disarmed . | . . . . Reprogrammed . | . . . . Reused . | . . . . Traps Extracted . | . . . . Installed . | . . . . Triggered 2 | . . 2 . Machines | -11 -10 -10 -8 ---------- Run | Yrd Mat Sub Mat Machines Disabled 13 | . . 1 12 Max in Single Turn 2 | . . 1 2 Machines Repaired . | . . . . Machines Dismantled . | . . . . Machines Sabotaged . | . . . . Overloaded Fab Kills . | . . . . Hacking | -11 -10 -10 -8 --------- Run | Yrd Mat Sub Mat Machines Accessed 10 | . 5 2 3 Terminals 6 | . 4 . 2 Fabricators . | . . . . Repair Stations . | . . . . Recycling Units 1 | . 1 . . Scanalyzers 1 | . . . 1 Garrison Access . | . . . . Total Hacks 19 | . 9 5 5 Successful 16 | . 6 5 5 Failed 3 | . 3 . . Catastrophic . | . . . . Database Lockouts . | . . . . Manual 13 | . 8 . 5 Terminals 10 | . 6 . 4 Fabricators . | . . . . Repair Stations . | . . . . Recycling Units 3 | . 3 . . Scanalyzers 1 | . . . 1 Garrison Access . | . . . . Terminal Hacks 7 | . 1 5 1 Record 5 | . 1 4 . Hauler Manifests 1 | . . . 1 Derelict Proto ID Bank 1 | . . 1 . Fabricator Hacks . | . . . . Repair Station Hacks . | . . . . Recycling Unit Hacks . | . . . . Scanalyzer . | . . . . Garrison Access Hacks . | . . . . Unauthorized Hacks 9 | . 5 . 4 Terminals 6 | . 3 . 3 Botnet 5 | . 3 . 2 Operators 1 | . . . 1 Fabricators . | . . . . Repair Stations . | . . . . Recycling Units 2 | . 2 . . Reject 1 | . 1 . . Recyclers 1 | . 1 . . Scanalyzers 1 | . . . 1 Extract 1 | . . . 1 Garrison Access . | . . . . Data Cores Recovered . | . . . . Used . | . . . . Hacking Detections 5 | . 4 . 1 Full Trace Events . | . . . . Feedback Events . | . . . . Feedback Blocked . | . . . . Robot Schematics Acquired . | . . . . Robots Built . | . . . . Authchips . | . . . . Time . | . . . . Total Robot Build Rating . | . . . . Part Schematics Acquired 7 | . . . 7 Parts Built . | . . . . Authchips . | . . . . Time . | . . . . Total Part Build Rating . | . . . . Parts Repaired . | . . . . Time . | . . . . Parts Recycled . | . . . . Recycled Matter . | . . . . Retrieved Matter . | . . . . Retrieved Components . | . . . . Parts Scanalyzed . | . . . . Part Schematics Acquired . | . . . . Parts Damaged . | . . . . Bothacking | -11 -10 -10 -8 ------------ Run | Yrd Mat Sub Mat Used RIF Installer . | . . . . Robots Hacked . | . . . . Non-combat . | . . . . Combat . | . . . . Robot Hacks Applied . | . . . . Relay Couplers Released . | . . . . Fabnet Peak Effective % . | . . . . Robots Rewired . | . . . . Allies Hacked . | . . . . Hacks Repelled . | . . . . Allies | -11 -10 -10 -8 -------- Run | Yrd Mat Sub Mat Total Allies . | . . . . Largest Group . | . . . . Highest-Rated Group . | . . . . Highest-Rated Ally . | . . . . Total Orders . | . . . . Ally Attacks . | . . . . Total Damage . | . . . . Kills . | . . . . Allies Corrupted . | . . . . Allies Melted . | . . . . Intel | -11 -10 -10 -8 ------- Run | Yrd Mat Sub Mat Robot Analysis Total . | . . . . Derelict Logs Recovered 2 | . . 2 . Drone Launches . | . . . . Drone Recoveries . | . . . . Exploration | -11 -10 -10 -8 ------------- Run | Yrd Mat Sub Mat Turns Passed 10852 | 116 1544 7018 2174 Spaces Moved 3322 | 53 726 1842 701 Core 2 | 2 . . . Treads 1802 | 51 726 931 94 Legs . | . . . . Wheels 1518 | . . 911 607 Hover . | . . . . Flight . | . . . . Fastest Speed 50 | 50 160 160 155 Average Speed 287 | 155 160 355 251 Slowest Speed 560 | 160 160 560 560 Overloaded Moves . | . . . . Propulsion Burnouts . | . . . . Robots Hopped . | . . . . Cave-ins Triggered . | . . . . Exploration Rate (%) 54 | 4 77 95 40 Regions Visited 3 Branch Regions 1 Pre-discovered Areas 1 | . . 1 . Known Exits Taken 2 | . 1 1 . Unknown Exits Taken 1 | 1 . . . Scrap Searched 5 | . . 5 . Spaces Dug 21 | . . . 21 Terrain Destroyed 178 | . . 4 174 Melee . | . . . . Projectile . | . . . . AOE 178 | . . 4 174 Terrain Rammed . | . . . . Walls Destroyed . | . . . . Machines Disabled . | . . . . Actions | -11 -10 -10 -8 --------- Run | Yrd Mat Sub Mat Total 4033 | 73 916 2145 899 Wait 243 | . 45 149 49 Move 3319 | 52 725 1841 701 Hop . | . . . . Pick Up 36 | . 5 19 12 Fast Attach 19 | 5 4 5 5 Attach 3 | . . 1 2 Detach 4 | . . 4 . Swap 26 | . 3 10 13 Drop 17 | 1 6 4 6 Fire 306 | 15 112 92 87 Melee . | . . . . Ram 1 | . . . 1 Kick . | . . . . Crush . | . . . . Escape Stasis . | . . . . Rewire . | . . . . Trap . | . . . . Miscellaneous 59 | . 16 20 23 Route ------- -11/Scrapyard -10/Materials (discovered 3 exits: *Mat / *Min / *Sub) -10/Subcaves (discovered 2 exits: *Mat x2) -8/Materials (discovered 3 exits: *Fac x3) History --------- Turn | Location | Event 15 | -11/Scrapyard | Discovered new exit (range 14) 117 | -11/Scrapyard | Entered Materials 291 | -10/Materials | Upgraded with Weapon slot (x1) 318 | -10/Materials | Build established: Mutant 320 | -10/Materials | Upgraded with Propulsion slot (x1) 320 | -10/Materials | Upgraded with Utility slot (x1) 645 | -10/Materials | Upgraded with Utility slot (x1) 657 | -10/Materials | Discovered new exit (range 12) 678 | -10/Materials | Identified exit to Materials 1015 | -10/Materials | Discovered new exit (range 14) 1042 | -10/Materials | Identified exit to Mines 1117 | -10/Materials | Derelicts attacked the area 1230 | -10/Materials | Reached level 2 1268 | -10/Materials | Core integrity fell below 50% 1651 | -10/Materials | Discovered new exit (range 6) 1659 | -10/Materials | Identified exit to Subcaves 1661 | -10/Materials | Entered Subcaves 2199 | -10/Subcaves | Build established: Hauler-Mutant 3168 | -10/Subcaves | A swath of the cavern ceiling suddenly collapsed 4938 | -10/Subcaves | A swath of the cavern ceiling suddenly collapsed 5296 | -10/Subcaves | Visited Clippyterm 6360 | -10/Subcaves | Discovered new exit (range 10) 6597 | -10/Subcaves | Core integrity fell below 20% 6675 | -10/Subcaves | Upgraded with Utility slot (x1) 6797 | -10/Subcaves | Shifting Twisted Machinery released Sub. Monowheel 6824 | -10/Subcaves | Learned location of 2 exits from Materials 6844 | -10/Subcaves | Shifting Twisted Machinery released Flamer 6981 | -10/Subcaves | Reached level 3 7443 | -10/Subcaves | Shifting Twisted Machinery released Battle Cannon 7533 | -10/Subcaves | Learned location of Zion (-7) 8232 | -10/Subcaves | Discovered new exit (range 8) 8451 | -10/Subcaves | Visited 4L-MR0's lab 8479 | -10/Subcaves | Found Gun Armor 8677 | -10/Subcaves | Identified exit to Materials 8679 | -10/Subcaves | Entered Materials 8680 | -8/Materials | Identified exit to Factory 8680 | -8/Materials | Core integrity fell below 50% 8681 | -8/Materials | Reached level 4 8682 | -8/Materials | Upgraded with Utility slot (x1) 9476 | -8/Materials | Core integrity fell below 20% 9481 | -8/Materials | Attached Gun Armor, gained temporary slots: Weapon x2 9650 | -8/Materials | Discovered exit to Factory (range 10) 9808 | -8/Materials | Build established: Hauler-Gunner 10085 | -8/Materials | Reached level 5 10085 | -8/Materials | Upgraded with Propulsion slot (x1) 10624 | -8/Materials | Reached level 6 10665 | -8/Materials | Upgraded with Propulsion slot (x1) 10853 | -8/Materials | Destroyed by H-61 Shepherd with Heavy Assault Cannon Last Messages --------------- 10836_ R-06 Scavenger suffers critical hit (Burn). 10836_ R-06 Scavenger sends out distress signal. 10838_ K-01 Serf collects debris. 10844_ Knocked back. 10847_ H-61 Shepherd calls for reinforcements. 10847_ ALERT: Hostile activity reported, dispatching reinforcements to area. 10847_ Knocked back. 10847_ K-01 Serf collects debris. 10848_ The unstable cave ceiling collapses. 10849_ Penetrated by Slug. 10849_ Knocked back. 10849_ K-01 Serf collects debris. 10851_ Penetrated by Slug. 10851_ Machine Analyzer blasted off. 10851_ Knocked back. 10851_ K-01 Serf collects debris. 10853_ The unstable cave ceiling collapses. 10853_ K-01 Serf collects debris. Map ----- +----------------------------------------------------+ | ????????????????????????# # ## % # #? | | ????????????????????????# # ## #######? | | ????????????????????????# # ## ######## | | ????????????????????????# # ##%* # !! # | | ????????????????????????# # ##= # !! # | | ????????????????????????# ########+## + !/ # | | ????????????????????????# ???????# # # | | ????????????????????????# ????#### + ! # | | ???????????????????????? ????# # # | | ????"""??"""????????????##+#????# ######+######### | | ????"""??"""????????????????????#???# === ===# | | ????"""??"""????????????????????????# " # | | ????????????????????????????????????# """""!# ! | | ??????????? ????????????????????????# """""!# =%| | | ????"""??""" ???????????????????????# """""!# !% | | ????"""??""" ??###+###?"""?"""?????# """""*####+ | | ????"""? """ ### #?"""?"""?????# """""=+ | | ??????? #?"""?"""?????# """"" #### | | ?????????? #??????####+### #??# | | ????????????? #??????# #######+##??# | | ???o???????????# = H ????###!! = !##????# #???# | | ???????????+##### ##### #w =%= ##????# #???# | | ??????????? / *= #????# #???# | | ????????????== % !!! # k ###???# #???# | | ?????????????????+ %/g!*!!! k #???# #???# | | ?????????????????# # !@= ###??# #???# | | ?????????????????# #= % # #??# #???# | | ?????????????????# # ## # #### #####= | | """??????????????# ######## !* ! | | ?Y"??????????????# ## # ####+#####= | | """??????????????# ## """ # # # | | ?????????????????# ## " #?# # | | ???????########### ## " #?# # | | ???????# !# ## # #?# # | | ???????+ # #######+# ############# | | ???????# """"""" # #?# | | ???????# """"""" + < #?# | | ???????# """"""" # #?# | | ???????# """"""" ############# # #############?## | | ???????# """"""" #???????????######??????????????? | | ???????# #???????????????????????????????? | | ???????###########???????????????????????????????? | | ?????????????????????????????????????????????????? | | | | | | | | | | | | | | | +----------------------------------------------------+ Best States ------------- Heat Dissipation 37 Energy Generation 10 Energy Capacity 250 Matter Stores 300 Matter Capacity 300 Sight Range 16 Terrain Scan Range 16 Terrain Scan Density 10 Armor Coverage 100 Resistance: KI 5 Resistance: EX 5 Evasion (%) 40 Recoil Reduction 2 Item Schematics ----------------- EM Pulse Cannon | -8/Materials | Extracted Particle Charger | -8/Materials | Extracted Adv. Targeting Computer | -8/Materials | Extracted Salvage Targeting Computer | -8/Materials | Extracted Com. Matter Pod | -8/Materials | Extracted Adv. Treads | -8/Materials | Extracted Hcp. Battery | -8/Materials | Extracted Robot Schematics ------------------ None Fabricated ------------ Nothing Alien Tech Used ----------------- None Achievements -------------- None Challenges ------------ None RPGLIKE | -11 -10 -10 -8 --------- Run | Yrd Mat Sub Mat Levels Raised 5 | . 1 1 3 XP Earned 11200 | 3000 1905 1200 5095 XP Spent 9395 | . 3050 2925 3420 Upgrades 18 | . 6 7 5 Propulsion Slot 3 | . 1 . 2 Utility Slot 4 | . 2 1 1 Weapon Slot 1 | . 1 . . Core Integrity 1 | . . 1 . Heat Dissipation 2 | . . . 2 Inventory Capacity 2 | . 2 . . Ranged Accuracy 3 | . . 3 . KI Resistance % 1 | . . 1 . EX Resistance % 1 | . . 1 . Protomatter Created 626 | . 216 146 264 Integrity Restored 1269 | . 354 438 477 Core 1269 | . 354 438 477 Protomatter Decayed 91 | . 57 . 34 Game ------ Seed SpliceMicrowarpScrap Manual? 0 Play Time 01:03:58 Cumulative 56.9 hours Start 2024.04.30 @ 14:40:25 End 2024.04.30 @ 16:08:55 Sessions 1 Manual Loads 0 Difficulty Rogue Special Mode Winter2019/RPGLIKE Game No. 53 Rogue 41 Adventurer 12 Explorer 0 Win Type - Total 1 Types 1/0/0/0/0/0/0/0/0 Lore% 25 Gallery% 42 Achievement% 33 Wizard Run 0 Options --------- Layout 2 ASCII 0 Keyboard 0 Movement Numpad Keybinds 0 Fullscreen 1 Font 24/Smallcaps Map View 50x44 Zoom Use 16% Tactical HUD 1 Map Filters NONE Filters NONE Steam 1 RUN: 049d99ea-e455-4c1d-a603-bf120304d061